Workbook

Sheet Munka1
A1: sorszám | B1: helyrajzi szám | C1: irányító szám | D1: cím | E1: megnevezés | F1: Menekülési útirányt mutató lámpatest | G1: Egyéb menekülési út világítás | H1: Menekülési út megvilágítása Inverteres lámpatesttel | I1: Hő és füstelvezető | J1: Beépített tűzjelző berendezések | K1: Tűzoltó készülékek | L1: Fali tűzcsap, vízforrás a természetes vízforrás kivételével, nyomásfokozó szivattyú, száraz oltóvízvezeték: | M1: Beépített tűzoltó berendezés | N1: Tűz- és hibaátjelző berendezés | O1: Tűzoltósági kulcsszéf | P1: Tűzoltósági rádióereősítő | Q1: Tűzoltó felvonó | R1: Evakuációs hangrendszer | S1: Pánikzár, vészkijárati zár, vészkijárati biztosító rendszer | T1: Tűzgátló nyílászárók | U1: Tűzgátló záróelemek | V1: Füstelvezető, légpótló szerkezet | W1: Füstelszívó, légpótló ventilátor | X1: Füstmentesítő ventilátor | Y1: Füstcsappantyú, zsalu | Z1: Füstgátló nyílászárók | AA1: Mobil füstkötény | AB1: Biztonsági tápforrásnak minösülő dízelaggregátor | AC1: Biztonsági tápforrásnak minősülő akkumlátor, szüntetmentes tápegység
B3: SZTE ÁOK | D3: ÁOK
A4: 3 | B4: 25600 | C4: 6724 | D4: Szeged, Kossuth Lajos sgt. 38. | E4: Anatómia (oktatási épület) | J4: 1
A5: 4 | D5: Szeged, Dóm tér 10-12 | E5: Elméleti intézet | T5: 6
A6: 5 | D6: Szeged, Dóm tér 13. | E6: Szent-Györgyi Albert Oktatási Épület (Nagy oktatási épület) | J6: 1 | S6: 3 | T6: 3
A7: 6 | D7: Szeged, Somogyi u. 2. | E7: Művese Központ | F7: 61 | H7: 148 | I7: 2 | J7: 1 | L7: 1 | N7: 1 | Q7: 1 | T7: 7 | V7: 1 | W7: 1 | X7: 1 | Y7: 2
A8: 7 | D8: Szeged, Somogyi u. 4. | E8: Biológiai intézet
A9: 8 | D9: Szeged, Tisza Lajos krt. 109. | E9: ÁOK Dékáni Hivatal
A10: 9 | D10: Szeged, Tisza Lajos krt.113. | E10: Dél-Alföldi Neurobiológiai Tudásközpont | F10: 59 | J10: 1
A11: 10 | B11: 3498 | C11: 6722 | D11: Szeged, Szentháromság u 5. | E11: Magatartástudományi Intézet
D15: SZAKK
A17: 11 | B17: SZTE SZAKK
A18: 12 | B18: 25782 | D18: Szeged, Vasas Szent Péter 1-3 | E18: II. rendelő
A19: 13 | B19: 25542 | D19: Szeged, Kálvária sgt 57. Vásárhelyi Pál u. 30 | E19: II.kórház Új Pszichiátria) | F19: 193 | G19: 41 | H19: 65 | J19: 1 | W19: 1 | Y19: 26 | AB19: 1 | AC19: 1
A20: 14 | E20: a épület gyógyítás - sebészet | J20: 1
A21: 15 | E21: b épület gyógyítás | J21: 1 | T21: 3
A22: 16 | E22: c épület gyógyítás - 200 ágyas | T22: 2
A23: 17 | E23: d épület gyógyítás - urulógia | I23: 1 | J23: 2 | T23: 6
A24: 18 | E24: e épület gyógyítás - ideg-elemosztály | I24: 17 | J24: 1 | T24: 12
A25: 19 | E25: f épület konyha
A26: 20 | E26: főbejárat, hőközpont
A27: 21 | E27: g épület raktár,iroda
A28: 22 | E28: i. épület étterem,iroda,kazán
A29: 23 | E29: sbo épület gyógyítás
A30: 24 | E30: 13 porta, gazdasági bejárat | J30: 1
A31: 25 | E31: 14 épület főelosztó, aggregát
A32: 26 | E32: 15 épület tetemtároló
A33: 27 | E33: 16 mosléktároló
A34: 28 | E34: 17 épület oxigéntároló
A35: 29 | E35: 22 trafó
A36: 30 | B36: 25528/2 | C36: 6724 | D36: Szeged, Leányszállás köz 2/b | E36: Nővérszálló
A37: 31 | B37: 25528/1 | C37: 6724 | D37: Szeged, Leányszállás köz 2/a, Kátay 2/b | E37: Neuropszichiátriai Rehabilitációs Oszt. | F37: 12 | H37: 4 | I37: 2 | J37: 1 | Q37: 1 | T37: 9 | W37: 7 | X37: 1 | Y37: 1 | Z37: 4
A38: 32 | B38: 20294/1 | C38: 6725 | D38: Szeged, Semmelweis u. 6 | E38: Klinikapark déli terület (55842)
A39: 33 | E39: Új Klinika 410 ágyas | F39: 158 | H39: 79 | J39: 1 | L39: 9 | M39: 1 | N39: 1 | T39: 76 | U39: 65 | V39: 4 | W39: 4 | X39: 4 db | Y39: 56 | Z39: 86 | AB39: 2
A40: 34 | E40: Laborok
A41: 35 | E41: Nukleáris Medicína Intézet Izotólabor
A42: 36 | E42: Egyetemi Gyógyszertár
A43: 37 | E43: Báló József oktatási épület (volt nyomda 5038)
A44: 38 | E44: 265 Ágyas klinika | F44: 244 | G44: 231 | J44: 1 | M44: 1 | Q44: 2 | S44: 92 | T44: 124 | U44: 92 | V44: 34 | W44: 23 | X44: 3 | Y44: 45 | Z44: 28 | AB44: 2
A45: 39 | D45: Szeged, Semmelweis u. 6. | E45: kazánház
A46: 40 | D46: Szeged, Állomás u. 2. | E46: Pathológia | J46: 1
A47: 41 | D47: Szeged, Állomás u. 2. | E47: pathológia melléképülete
A48: 42 | D48: Szeged, Korányi fasor 6. | E48: II.sz. Belgyógyászati Klinika és Kardiológiai Központ | J48: 1 | AB48: 1
A49: 43 | E49: Bőrgyógyászati és Allergológiai Klinika | J49: 1
A50: 44 | D50: Szeged, Korányi fasor 7. | E50: Aneszteziológiai és Intenzív Terápiás Intézet (körito)
A51: 45 | D51: Szeged, Korányi fasor 8. | E51: I.sz. Belgyógyászati Klinika | AB51: 1
A52: 46 | D52: Szeged, Korányi fasor 9. | E52: Kis Oktatási Épület
A53: 47 | E53: Orvosi Informatikai Intézet
A54: 48 | E54: Családorvosi Intézet | F54: 2
A55: 49 | D55: Szeged, Korányi fasor 10-11. | E55: Szemészeti Klinika | T55: 2
A56: 50 | E56: Onkoterápiás Klinika | J56: 1
A57: 51 | D57: Szeged, Szőkefalvi-Nagy Béla u. 6. | E57: Sebészeti Klinika | J57: 1 | AB57: 1
A58: 52 | E58: porta
A59: 53 | B59: 3724 | C59: 6725 | D59: Szeged, Korányi fasor 14-15. | E59: Gyermekgyógyászati Klinika | F59: 20 | J59: 1 | T59: 2 | AB59: 1
A60: 54 | E60: Anyagcsere szűrő laboratórium | I60: 2
A61: 55 | D61: Szeged, Tisza Lajos krt. 111. | E61: Fül-Orr-Gégészeti és Fej-Nyaksebészeti Klinika | J61: 1
A62: 56 | B62: 3719 | C62: 6725 | D62: Szeged, Tisza Lajos krt. 107. | E62: Szent-Györgyi Albert Klinikai Központ, Gazdasági Igazgatóság | J62: 1
A63: 57 | B63: 3717 | C63: 6725 | D63: Szeged, Semmelweis u. 1. (Tisza Lajos krt. 105.) | E63: Szülészeti és Nőgyógyászati Klinika | F63: 15 | H63: 20 | J63: 1
A64: 58 | B64: 3548 | C64: 6722 | D64: Szeged, Boldogasszony sgt 15. | E64: Gyermek és Ifjúságpszichiátria | J64: 1
A65: 59 | B65: 3497/2 | C65: 6722 | D65: Szeged, Tisza Lajos krt 97 | E65: I. rendelő | F65: 77 | J65: 1
A66: 60 | B66: 1769/1 | D66: Szeged, Temesvári krt 35-37. | E66: gyermekkórház
A67: 61 | E67: 1.sz. D épület Főépület
A68: 62 | E68: 2.sz. C épület Fül-Orr-Gége
A69: 63 | E69: 3.sz. E épület Rehabilitáció, neurológia
A70: 64 | E70: 5.sz. B épület Ambulancia
A71: 65 | E71: 7.sz. épület Műhely
A72: 66 | E72: 8.sz. épület Raktár
A73: 67 | E73: 10.sz. I. épület Pulmonológia, könyvtár
A74: 68 | E74: 12.sz. H épület Ifjúságpszichiátria, szemészet, kardiológia, ambulancia
A75: 69 | E75: 13.sz. A épület Porta | J75: 1
A76: 70 | E76: irodakonténer
A77: 71 | B77: 1769/2 | E77: 4.sz. G épület Fertőző osztály (MÁV Zrt területén)
B80: SZTE FOK | D80: FOK
A81: 79 | B81: 3754 | C81: 6720 | D81: Szeged, Tisza Lajos krt.64-66. | E81: Fogászati és Szájsebészeti Klinika | F81: 8 | H81: 12 | J81: 1
A82: 80 | E82: melléképület
A83: 81 | E83: melléképület
A84: 82 | E84: melléképület
A85: 83 | B85: 3437 | C85: 6722 | D85: Szeged, Tisza Lajos krt. 83 | E85: főépület
A86: 84 | E86: melléképület
B89: SZTE Kollégiumok | D89: Kollégiumok
A90: 140 | B90: 3737/3 | C90: 6720 | D90: Szeged, Apáthy u 4. (Dóm tér 5 -1) | E90: Apáthy István kollégium | F90: 39 | J90: 1
A91: 142 | B91: 3693 | C91: 6725 | D91: Szeged, Semmelweis u 7-9. | E91: id. Jancsó Miklós kollégium | F91: 43 | H91: 80 | J91: 1
A92: 144 | D92: Szeged, Semmelweis u 4. | E92: Semmelweis Ignác kollégium GYTK | J92: 1
B94: 3487 | C94: 6722 | D94: Szeged, Ady tér 10. | E94: József Attila Tanulmányi és Információs Központ | I94: 186 | L94: 3 | S94: 26 | T94: 17 | W94: 2 | Y94: 58
D95: Szeged, Aradi vértanúk tere 1. | E95: Bólyai épület | I95: 28 | T95: 40 | Z95: 31
D96: Szeged, Tisza Lajos krt. 84-86. | E96: Bólyai épület
D97: Szeged, Szőkefalvi-Nagy Béla u. 2. | E97: Bólyai épület
D99: Összesen: | F99: =SUM(F2:F97) -> 931 | G99: =SUM(G2:G97) -> 272 | H99: =SUM(H2:H97) -> 408 | I99: =SUM(I2:I97) -> 238 | J99: =SUM(J2:J97) -> 30 | L99: =SUM(L2:L97) -> 13 | M99: =SUM(M2:M97) -> 2 | N99: =SUM(N2:N97) -> 2 | O99: =SUM(O2:O97) -> 0 | Q99: =SUM(Q2:Q97) -> 4 | S99: =SUM(S2:S97) -> 121 | T99: =SUM(T3:T97) -> 309 | U99: =SUM(U2:U97) -> 157 | V99: 39 | W99: 38 | X99: 5 | Y99: 188 | Z99: 149 | AB99: =SUM(AB2:AB97) -> 9 | AC99: =SUM(AC2:AC97) -> 1

Sheet Tűzoltó készülékek
A2: K A R | B2: H E L Y | D2: Ellenőrzőtt készülék | I2: Összes javított készülék | W2: Tűzcsap
D3: Por | E3: Hab | F3: CO | G3: NKK | H3: össz db | I3: 1kgR | J3: 1kgT | K3: 2kgR | L3: 2kgT | M3: 6kgR | N3: 6kgT | O3: 12kgR | P3: 12kgT | Q3: 6 l hab | R3: 9 l hab | S3: 2kg Co2 | T3: 5kg Co2 | V3: 4l NKK | W3: összes | X3: javított
A4: ÁJTK | B4: Jogi kar | D4: 23 | E4: 0 | F4: 2 | G4: 0 | H4: 25 | P4: 2 | Q4: 0 | R4: 0 | S4: 0 | T4: 0 | V4: 0 | W4: 0 | X4: 0
B5: Rákóczi téri ép. | D5: 0 | E5: 7 | F5: 1 | G5: 0 | H5: 8 | Q5: 0 | R5: 0 | S5: 0 | T5: 0 | V5: 0 | W5: 7 | X5: 0
D6: 23 | E6: 7 | F6: 3 | G6: 0 | H6: 33 | P6: 2 | Q6: 0 | R6: 0 | S6: 0 | T6: 0 | V6: 0 | W6: 7 | X6: 0
A9: K A R | B9: H E L Y | D9: Ellenőrzőtt készülék | I9: Összes javított készülék | W9: Tűzcsap
D10: Por | E10: Hab | F10: CO | G10: NKK | H10: össz db | I10: 1kgR | J10: 1kgT | K10: 2kgR | L10: 2kgT | M10: 6kgR | N10: 6kgT | O10: 12kgR | P10: 12kgT | Q10: 6 l hab | R10: 9 l hab | S10: 2kg Co2 | T10: 5kg Co2 | V10: 4l NKK | W10: összes | X10: javított
A11: ÁOK | B11: Állomás u. Nővérszálló | D11: 1 | E11: 0 | F11: 0 | G11: 0 | H11: 1 | Q11: 0 | R11: 0 | S11: 0 | T11: 0 | V11: 0 | W11: 0 | X11: 0
B12: 265 ágyas Klinika | D12: 62 | E12: 0 | F12: 3 | G12: 0 | H12: 65 | Q12: 0 | R12: 0 | S12: 0 | T12: 0 | V12: 0 | W12: 57 | X12: 0
B13: 410 ágyas Klinika | D13: 36 | E13: 5 | F13: 16 | G13: 0 | H13: =SUM(D13:G13) -> 57 | M13: 5 | N13: 1 | Q13: 0 | R13: 0 | S13: 3 | T13: 0 | V13: 0 | W13: 71 | X13: 64
B14: Anatómia | D14: 20 | E14: 3 | F14: 2 | G14: 0 | H14: 25 | M14: 2 | Q14: 2 | R14: 0 | S14: 0 | T14: 0 | V14: 0 | W14: 1 | X14: 0
B15: Anyatejbegyűjtő állomás | D15: 2 | E15: 0 | F15: 0 | G15: 0 | H15: 2 | Q15: 0 | R15: 0 | S15: 0 | T15: 0 | V15: 0 | W15: 0 | X15: 0
B16: Apáthy Kollégium | D16: 14 | E16: 0 | F16: 1 | G16: 0 | H16: 15 | M16: 2 | O16: 1 | Q16: 0 | R16: 0 | S16: 0 | T16: 0 | V16: 0 | W16: 12 | X16: 0
B17: Battyhányi óvoda | D17: 2 | E17: 0 | F17: 0 | G17: 0 | H17: 2 | Q17: 0 | R17: 0 | S17: 0 | T17: 0 | V17: 0 | W17: 0 | X17: 0
B18: Bőr és Nemibeteg G. felnőtt | D18: 2 | E18: 0 | F18: 0 | G18: 0 | H18: 2 | Q18: 0 | R18: 0 | S18: 0 | T18: 0 | V18: 0 | W18: 0 | X18: 0
B19: Bőr és Nemibeteg G. gyerek | D19: 0 | E19: 1 | F19: 0 | G19: 0 | H19: 1 | Q19: 1 | R19: 0 | S19: 0 | T19: 0 | V19: 0 | W19: 0 | X19: 0
B20: Dékáni Hivatal | D20: 8 | E20: 0 | F20: 1 | G20: 0 | H20: 9 | Q20: 0 | R20: 0 | S20: 0 | T20: 0 | V20: 0 | W20: 0 | X20: 0
B21: Dóm tér 10. | D21: 31 | E21: 3 | F21: 6 | G21: 0 | H21: 40 | M21: 5 | N21: 1 | Q21: 1 | R21: 0 | S21: 0 | T21: 0 | V21: 0 | W21: 5 | X21: 0
B22: Dóm tér 12. | D22: 15 | E22: 3 | F22: 4 | G22: 0 | H22: =SUM(D22:G22) -> 22 | N22: 2 | Q22: 2 | R22: 0 | S22: 0 | T22: 0 | V22: 0 | W22: 5 | X22: 0
B23: Dóm tér 13. Nagyoktatási ép. | D23: 24 | E23: 3 | F23: 5 | G23: 0 | H23: 32 | M23: 7 | Q23: 3 | R23: 0 | S23: 0 | T23: 0 | V23: 0 | W23: 6 | X23: 0
B24: Dóm tér 8-9 Orvosvegytan | D24: 12 | E24: 0 | F24: 5 | G24: 0 | H24: 17 | M24: 3 | Q24: 4 | R24: 0 | S24: 0 | T24: 0 | V24: 0 | W24: 5 | X24: 0
B25: Domaszéki Állatház | D25: 10 | E25: 2 | F25: 0 | G25: 0 | H25: 12 | M25: 1 | O25: 1 | Q25: 2 | R25: 0 | S25: 0 | T25: 0 | V25: 0 | W25: 0 | X25: 0
B26: Fül-Orr-Gége Klinika | D26: 13 | E26: 0 | F26: 0 | G26: 0 | H26: 13 | M26: 4 | Q26: 0 | R26: 0 | S26: 0 | T26: 0 | V26: 0 | W26: 0 | X26: 0
B27: Garázs | D27: 9 | E27: 0 | F27: 0 | G27: 0 | H27: 9 | K27: 1 | M27: 1 | N27: 1 | Q27: 0 | R27: 0 | S27: 0 | T27: 0 | V27: 0 | W27: 0 | X27: 0
B28: GH | D28: 18 | E28: 2 | F28: 0 | G28: 0 | H28: 20 | M28: 2 | P28: 1 | Q28: 0 | R28: 0 | S28: 0 | T28: 0 | V28: 0 | W28: 0 | X28: 0
B29: Gyermekkl. Anyagcsere Lab. | D29: 2 | E29: 0 | F29: 0 | G29: 0 | H29: 2 | Q29: 0 | R29: 0 | S29: 0 | T29: 0 | V29: 0 | W29: 0 | X29: 0
B30: Gyermekklinika "A" | D30: 28 | E30: 2 | F30: 4 | G30: 0 | H30: 34 | M30: 3 | N30: 1 | Q30: 1 | R30: 0 | S30: 0 | T30: 0 | V30: 0 | W30: 8 | X30: 1
B31: Gyermekklinika "B" | D31: 32 | E31: 1 | F31: 0 | G31: 0 | H31: 33 | M31: 7 | O31: 1 | Q31: 1 | R31: 0 | S31: 0 | T31: 0 | V31: 0 | W31: 1 | X31: 0
B32: Gyermekpszichiátria | D32: 10 | E32: 1 | F32: 2 | G32: 0 | H32: 13 | N32: 1 | Q32: 0 | R32: 0 | S32: 0 | T32: 1 | V32: 0 | W32: 0 | X32: 0
B33: Gyógyszerraktári kp. | D33: 14 | E33: 0 | F33: 0 | G33: 0 | H33: 14 | M33: 1 | Q33: 0 | R33: 0 | S33: 0 | T33: 0 | V33: 0 | W33: 6 | X33: 0
B34: I. Sz. Belgyógyászati Klinika | D34: 30 | E34: 7 | F34: 5 | G34: 0 | H34: 42 | M34: 3 | Q34: 7 | R34: 0 | S34: 0 | T34: 0 | V34: 0 | W34: 5 | X34: 0
B35: I.Sz. Rendelőintézet | D35: 25 | E35: 0 | F35: 2 | G35: 0 | H35: 27 | N35: 1 | Q35: 1 | R35: 0 | S35: 0 | T35: 0 | V35: 0 | W35: 12 | X35: 0
B36: Igazságügy | D36: 11 | E36: 7 | F36: 0 | G36: 0 | H36: 18 | M36: 1 | O36: 1 | Q36: 6 | R36: 0 | S36: 0 | T36: 0 | V36: 0 | W36: 0 | X36: 0
B37: Izotóp labor | D37: 2 | E37: 0 | F37: 0 | G37: 0 | H37: 2 | Q37: 0 | R37: 0 | S37: 0 | T37: 0 | V37: 0 | W37: 0 | X37: 0
B38: II. Bel. Kisoktatási épület | D38: 8 | E38: 15 | F38: 3 | G38: 0 | H38: 26 | M38: 4 | Q38: 16 | R38: 0 | S38: 0 | T38: 0 | V38: 0 | W38: 5 | X38: 0
B39: II. Kórház | D39: 84 | E39: 16 | F39: 8 | G39: 0 | H39: 108 | K39: 1 | M39: 4 | N39: 4 | Q39: 0 | R39: 2 | S39: 0 | T39: 0 | V39: 0 | W39: 39 | X39: 0
B40: II. Sz. Belgyógy. Klinika | D40: 36 | E40: 1 | F40: 6 | G40: 0 | H40: 43 | M40: 1 | Q40: 1 | R40: 0 | S40: 0 | T40: 0 | V40: 0 | W40: 6 | X40: 0
B41: II.Sz. Rendelőintézet | D41: 20 | E41: 1 | F41: 0 | G41: 0 | H41: 21 | N41: 2 | Q41: 1 | R41: 0 | S41: 0 | T41: 0 | V41: 0 | W41: 10 | X41: 0
B42: Jancsó Miklós Kollégium | D42: 8 | E42: 2 | F42: 0 | G42: 0 | H42: 10 | N42: 1 | Q42: 0 | R42: 0 | S42: 0 | T42: 0 | V42: 0 | W42: 5 | X42: 0
B43: Kazánház | D43: 20 | E43: 0 | F43: 0 | G43: 0 | H43: 20 | O43: 2 | P43: 1 | Q43: 0 | R43: 0 | S43: 0 | T43: 0 | V43: 0 | W43: 2 | X43: 0
B44: Klinikai Mikrobiológia | D44: 11 | E44: 3 | F44: 7 | G44: 0 | H44: 21 | M44: 1 | N44: 2 | Q44: 3 | R44: 0 | S44: 0 | T44: 0 | V44: 0 | W44: 0 | X44: 0
B45: Kórélettani Intézet | D45: 13 | E45: 7 | F45: 0 | G45: 0 | H45: 20 | N45: 1 | Q45: 5 | R45: 0 | S45: 0 | T45: 0 | V45: 0 | W45: 0 | X45: 0
B46: Körintenzív | D46: 0 | E46: 2 | F46: 1 | G46: 0 | H46: 3 | Q46: 2 | R46: 0 | S46: 0 | T46: 0 | V46: 0 | W46: 1 | X46: 0
B47: Leányszállás köz szálló | D47: 8 | E47: 3 | F47: 0 | G47: 0 | H47: 11 | Q47: 2 | R47: 0 | S47: 0 | T47: 0 | V47: 0 | W47: 0 | X47: 0
B48: Liliom kazánház | D48: 3 | E48: 0 | F48: 0 | G48: 0 | H48: 3 | O48: 6 | Q48: 0 | R48: 0 | S48: 0 | T48: 0 | V48: 0 | W48: 0 | X48: 0
B49: Liliom vendégház | D49: 2 | E49: 0 | F49: 0 | G49: 0 | H49: 2 | Q49: 0 | R49: 0 | S49: 0 | T49: 0 | V49: 0 | W49: 0 | X49: 0
B50: Logisztikai központ | D50: 7 | E50: 2 | F50: 0 | G50: 0 | H50: 9 | N50: 1 | Q50: 0 | R50: 1 | S50: 0 | T50: 0 | V50: 0 | W50: 0 | X50: 0
B51: Magatartás Tudományi Int. | D51: 5 | E51: 0 | F51: 0 | G51: 0 | H51: 5 | M51: 1 | Q51: 0 | R51: 0 | S51: 0 | T51: 0 | V51: 0 | W51: 0 | X51: 0
B52: Medi Center Izotóp lab | D52: 2 | E52: 0 | F52: 0 | G52: 0 | H52: 2 | Q52: 0 | R52: 0 | S52: 0 | T52: 0 | V52: 0 | W52: 0 | X52: 0
B53: Oktatási épület+Nyomda | D53: 3 | E53: 0 | F53: 0 | G53: 0 | H53: 3 | Q53: 0 | R53: 0 | S53: 0 | T53: 0 | V53: 0 | W53: 0 | X53: 0
B54: Onkoterápiás Klinika | D54: 8 | E54: 2 | F54: 3 | G54: 0 | H54: 13 | M54: 1 | Q54: 0 | R54: 0 | S54: 0 | T54: 0 | V54: 0 | W54: 4 | X54: 0
B55: Orvosbiológia | D55: 14 | E55: 5 | F55: 6 | G55: 0 | H55: 25 | M55: 7 | Q55: 4 | R55: 0 | S55: 0 | T55: 0 | V55: 0 | W55: 0 | X55: 0
B56: Phatológia | D56: 15 | E56: 1 | F56: 5 | G56: 0 | H56: 21 | M56: 1 | Q56: 1 | R56: 0 | S56: 0 | T56: 0 | V56: 0 | W56: 7 | X56: 0
B57: Pszichiátriai Rehab. | D57: 10 | E57: 8 | F57: 0 | G57: 0 | H57: 18 | M57: 2 | O57: 1 | Q57: 9 | R57: 1 | S57: 0 | T57: 0 | V57: 0 | W57: 9 | X57: 0
B58: Pulcz u. | D58: 8 | E58: 1 | F58: 0 | G58: 0 | H58: 9 | M58: 4 | Q58: 1 | R58: 0 | S58: 0 | T58: 0 | V58: 0 | W58: 0 | X58: 0
B59: Raktár (garázsoknál Onko) | D59: 1 | E59: 0 | F59: 0 | G59: 0 | H59: 1 | Q59: 0 | R59: 0 | S59: 0 | T59: 0 | V59: 0 | W59: 0 | X59: 0
B60: Sárkány Nővérszálló | D60: 0 | E60: 0 | F60: 0 | G60: 0 | H60: 0 | I60: 0 | J60: 0 | K60: 0 | L60: 0 | M60: 0 | N60: 0 | O60: 0 | P60: 0 | Q60: 0 | R60: 0 | S60: 0 | T60: 0 | V60: 0 | W60: 0 | X60: 0
B61: Sebészeti Klinika | D61: 35 | E61: 4 | F61: 5 | G61: 0 | H61: 44 | M61: 6 | N61: 2 | Q61: 1 | R61: 0 | S61: 2 | T61: 0 | V61: 0 | W61: 6 | X61: 0
B62: Skills központ | D62: 3 | E62: 0 | F62: 0 | G62: 0 | H62: 3 | Q62: 0 | R62: 0 | S62: 0 | T62: 0 | V62: 0 | W62: 2 | X62: 0
B63: Sportcentrum | D63: 6 | E63: 0 | F63: 0 | G63: 0 | H63: 6 | Q63: 0 | R63: 0 | S63: 0 | T63: 0 | V63: 0 | W63: 0 | X63: 0
B64: Szemészeti Klinika | D64: 20 | E64: 0 | F64: 2 | G64: 0 | H64: 22 | M64: 2 | Q64: 0 | R64: 0 | S64: 0 | T64: 0 | V64: 0 | W64: 1 | X64: 0
B65: Szemészeti Klinika tanterem | D65: 4 | E65: 0 | F65: 0 | G65: 0 | H65: 4 | Q65: 0 | R65: 0 | S65: 0 | T65: 0 | V65: 0 | W65: 0 | X65: 0
B66: Szülészeti és Nőgy. Klinika | D66: 28 | E66: 1 | F66: 5 | G66: 0 | H66: 34 | M66: 1 | N66: 3 | Q66: 1 | R66: 0 | S66: 0 | T66: 0 | V66: 0 | W66: 6 | X66: 0
B67: Üdülő Balaton | D67: 5 | E67: 0 | F67: 0 | G67: 0 | H67: 5 | Q67: 0 | R67: 0 | S67: 0 | T67: 0 | V67: 0 | W67: 0 | X67: 0
B68: Védőnői rendelők+Fogorvos | D68: 2 | E68: 1 | F68: 0 | G68: 0 | H68: 3 | M68: 1 | Q68: 0 | R68: 0 | S68: 0 | T68: 0 | V68: 0 | W68: 0 | X68: 0
B69: Zártforgalmú gyógyszertár | D69: 0 | E69: 0 | F69: 1 | G69: 0 | H69: 1 | Q69: 0 | R69: 0 | S69: 0 | T69: 0 | V69: 0 | W69: 0 | X69: 0
B70: Vendéglakás Szatymazi u | D70: 4 | E70: 0 | F70: 0 | G70: 0 | H70: 4 | N70: 4 | Q70: 0 | R70: 0 | S70: 0 | T70: 0 | V70: 0 | W70: 0 | X70: 0
D71: =SUM(D11:D70) -> 826 | E71: =SUM(E11:E70) -> 115 | F71: =SUM(F11:F70) -> 108 | G71: 0 | H71: 1049 | K71: =SUM(K12:K70) -> 2 | M71: =SUM(M13:M70) -> 83 | N71: =SUM(N12:N70) -> 28 | O71: =SUM(O13:O70) -> 13 | P71: 2 | Q71: =SUM(Q11:Q70) -> 78 | R71: 4 | S71: 3 | T71: 1 | V71: 0 | W71: 287 | X71: 65
A74: K A R | B74: H E L Y | D74: Ellenőrzőtt készülék | I74: Összes javított készülék | W74: Tűzcsap
D75: Por | E75: Hab | F75: CO | G75: NKK | H75: össz db | I75: 1kgR | J75: 1kgT | K75: 2kgR | L75: 2kgT | M75: 6kgR | N75: 6kgT | O75: 12kgR | P75: 12kgT | Q75: 6 l hab | R75: 9 l hab | S75: 2kg Co2 | T75: 5kg Co2 | V75: 4l NKK | W75: összes | X75: javított
A76: BTK | B76: Egyetem u. 2-4 | D76: 58 | E76: 13 | F76: 24 | G76: 0 | H76: =SUM(D76:G76) -> 95 | M76: 14 | Q76: 10 | R76: 0 | S76: 0 | T76: 0 | V76: 0 | W76: 0 | X76: 0
B77: Petőfi épület | D77: 22 | E77: 0 | F77: 7 | G77: 0 | H77: 29 | M77: 5 | Q77: 10 | R77: 0 | S77: 0 | T77: 0 | V77: 0 | W77: 5 | X77: 0
D79: =SUM(D76:D78) -> 80 | E79: =SUM(E76:E78) -> 13 | F79: =SUM(F76:F78) -> 31 | G79: =SUM(G76:G78) -> 0 | H79: =SUM(H76:H78) -> 124 | M79: =SUM(M76:M78) -> 19 | Q79: 10 | R79: 0 | S79: 0 | T79: 0 | V79: 0 | W79: 5 | X79: 0
A81: K A R | B81: H E L Y | D81: Ellenőrzőtt készülék | I81: Összes javított készülék | W81: Tűzcsap
D82: Por | E82: Hab | F82: CO | G82: NKK | H82: össz db | I82: 1kgR | J82: 1kgT | K82: 2kgR | L82: 2kgT | M82: 6kgR | N82: 6kgT | O82: 12kgR | P82: 12kgT | Q82: 6 l hab | R82: 9 l hab | S82: 2kg Co2 | T82: 5kg Co2 | V82: 4l NKK | W82: összes | X82: javított
A83: DNT | D83: 9 | E83: 1 | F83: 9 | G83: 0 | H83: 19 | M83: 1 | Q83: 1 | R83: 0 | S83: 0 | T83: 8 | V83: 0 | W83: 5 | X83: 0
D84: 9 | E84: 1 | F84: 9 | G84: 0 | H84: 19 | M84: =SUM(M83) -> 1 | Q84: 1 | R84: 0 | S84: 0 | T84: 8 | V84: 0 | W84: 5 | X84: 0
A88: K A R | B88: H E L Y | D88: Ellenőrzőtt készülék | I88: Összes javított készülék | W88: Tűzcsap
D89: Por | E89: Hab | F89: CO | G89: NKK | H89: össz db | I89: 1kgR | J89: 1kgT | K89: 2kgR | L89: 2kgT | M89: 6kgR | N89: 6kgT | O89: 12kgR | P89: 12kgT | Q89: 6 l hab | R89: 9 l hab | S89: 2kg Co2 | T89: 5kg Co2 | V89: 4l NKK | W89: összes | X89: javított
A90: ETSZK | B90: Madzsar Kollégium | D90: 19 | E90: 3 | F90: 4 | G90: 0 | H90: 26 | M90: 10 | O90: 5 | Q90: 0 | R90: 0 | S90: 2 | T90: 0 | V90: 0 | W90: 12 | X90: 0
B91: Béke Kollégium | D91: 4 | E91: 0 | F91: 0 | G91: 0 | H91: 4 | M91: 3 | Q91: 0 | R91: 0 | S91: 0 | T91: 0 | V91: 0 | W91: 5 | X91: 0
B92: ETSZK Temesvári krt. | D92: 25 | E92: 1 | F92: 2 | G92: 0 | H92: 28 | M92: 6 | O92: 1 | Q92: 0 | R92: 0 | S92: 0 | T92: 0 | V92: 0 | W92: 6 | X92: 0
D93: =SUM(D90:D92) -> 48 | E93: 4 | F93: 6 | G93: 0 | H93: =SUM(H90:H92) -> 58 | M93: =SUM(M90:M92) -> 19 | O93: =SUM(O90:O92) -> 6 | Q93: 0 | R93: 0 | S93: 2 | T93: 0 | V93: 0 | W93: 23 | X93: 0
A96: K A R | B96: H E L Y | D96: Ellenőrzőtt készülék | I96: Összes javított készülék | W96: Tűzcsap
D97: Por | E97: Hab | F97: CO | G97: NKK | H97: össz db | I97: 1kgR | J97: 1kgT | K97: 2kgR | L97: 2kgT | M97: 6kgR | N97: 6kgT | O97: 12kgR | P97: 12kgT | Q97: 6 l hab | R97: 9 l hab | S97: 2kg Co2 | T97: 5kg Co2 | V97: 4l NKK | W97: összes | X97: javított
A98: Fogklinika | B98: Fogklinika "A" | D98: 19 | E98: 0 | F98: 2 | G98: 0 | H98: 21 | M98: 13 | Q98: 0 | R98: 0 | S98: 1 | T98: 0 | V98: 0 | W98: 0 | X98: 0
B99: Fogklinika "B" | D99: 6 | E99: 0 | F99: 0 | G99: 0 | H99: 6 | Q99: 0 | R99: 0 | S99: 0 | T99: 0 | V99: 0 | W99: 0 | X99: 0
D100: 0 | E100: 0 | F100: 0 | G100: 0 | H100: 0 | Q100: 0 | R100: 0 | S100: 0 | T100: 0 | V100: 0 | W100: 0 | X100: 0
D101: 25 | E101: 0 | F101: 2 | G101: 0 | H101: 27 | M101: =SUM(M98:M100) -> 13 | Q101: 0 | R101: 0 | S101: 1 | T101: 0 | V101: 0 | W101: 0 | X101: 0
A103: K A R | B103: H E L Y | D103: Ellenőrzőtt készülék | I103: Összes javított készülék | W103: Tűzcsap
D104: Por | E104: Hab | F104: CO | G104: NKK | H104: össz db | I104: 1kgR | J104: 1kgT | K104: 2kgR | L104: 2kgT | M104: 6kgR | N104: 6kgT | O104: 12kgR | P104: 12kgT | Q104: 6 l hab | R104: 9 l hab | S104: 2kg Co2 | T104: 5kg Co2 | V104: 4l NKK | W104: összes | X104: javított
A105: GMF | B105: Eötvös Kollégium | D105: 17 | E105: 2 | F105: 0 | G105: 0 | H105: 19 | M105: 2 | Q105: 0 | R105: 0 | S105: 0 | T105: 0 | V105: 0 | W105: 17 | X105: 0
B106: Balatoni üdülők | D106: 6 | E106: 0 | F106: 0 | G106: 0 | H106: 6 | Q106: 0 | R106: 0 | S106: 0 | T106: 0 | V106: 0 | W106: 0 | X106: 0
B107: GMF Irattár | D107: 1 | E107: 0 | F107: 0 | G107: 0 | H107: 1 | Q107: 0 | R107: 0 | S107: 0 | T107: 0 | V107: 0 | W107: 0 | X107: 0
B108: Rákóczi tér raktár | D108: 16 | E108: 14 | F108: 3 | G108: 0 | H108: 33 | M108: 11 | N108: 7 | O108: 1 | Q108: 11 | R108: 0 | S108: 0 | T108: 1 | V108: 0 | W108: 0 | X108: 0
B109: Gmf műszak | D109: 7 | E109: 1 | F109: 0 | G109: 0 | H109: 8 | N109: 1 | Q109: 1 | R109: 0 | S109: 0 | T109: 1 | V109: 0 | W109: 4 | X109: 1
B110: Gmf gépjárművek+Garázs | D110: 8 | E110: 0 | F110: 0 | G110: 0 | H110: 0 | I110: 2 | K110: 6 | L110: 3 | Q110: 0 | R110: 0 | S110: 0 | T110: 0 | V110: 0 | W110: 0 | X110: 0
B111: Tompai kapu raktár | D111: 20 | E111: 1 | F111: 0 | G111: 0 | H111: 21 | M111: 1 | Q111: 1 | R111: 0 | S111: 0 | T111: 0 | V111: 0 | W111: 7 | X111: 0
D112: =SUM(D105:D111) -> 75 | E112: =SUM(E105:E111) -> 18 | F112: =SUM(F105:F111) -> 3 | G112: 0 | H112: =SUM(H105:H111) -> 88 | I112: 2 | K112: 6 | L112: 3 | M112: 14 | N112: 8 | O112: 1 | Q112: 7 | R112: 0 | S112: 0 | T112: 1 | V112: 0 | W112: =SUM(W105:W111) -> 28 | X112: =SUM(X105:X111) -> 1
A114: K A R | B114: H E L Y | D114: Ellenőrzőtt készülék | I114: Összes javított készülék | W114: Tűzcsap
D115: Por | E115: Hab | F115: CO | G115: NKK | H115: össz db | I115: 1kgR | J115: 1kgT | K115: 2kgR | L115: 2kgT | M115: 6kgR | N115: 6kgT | O115: 12kgR | P115: 12kgT | Q115: 6 l hab | R115: 9 l hab | S115: 2kg Co2 | T115: 5kg Co2 | V115: 4l NKK | W115: összes | X115: javított
A116: GTK | B116: Kálvária sgt. 1. | D116: 15 | E116: 2 | F116: 1 | G116: 0 | H116: 18 | O116: 1 | Q116: 0 | R116: 0 | S116: 0 | T116: 0 | V116: 0 | W116: 10 | X116: 0
B117: Fekete sas u. 28. | D117: 7 | E117: 0 | F117: 0 | G117: 0 | H117: 7 | N117: 1 | O117: 1 | Q117: 0 | R117: 0 | S117: 0 | T117: 0 | V117: 0 | W117: 6 | X117: 6
B118: Jogklinika | D118: 1 | E118: 0 | F118: 0 | G118: 0 | H118: 1 | Q118: 0 | R118: 0 | S118: 0 | T118: 0 | V118: 0 | W118: 0 | X118: 0
B119: Zoltán u. | D119: 11 | E119: 0 | F119: 0 | G119: 0 | H119: 11 | M119: 9 | Q119: 0 | R119: 0 | S119: 0 | T119: 0 | V119: 0 | W119: 0 | X119: 0
B120: Honvéd tér | D120: 7 | E120: 0 | F120: 0 | G120: 0 | H120: 7 | N120: 1 | Q120: 0 | R120: 0 | S120: 0 | T120: 0 | V120: 0 | W120: 0 | X120: 0
D121: =SUM(D116:D120) -> 41 | E121: =SUM(E116:E120) -> 2 | F121: =SUM(F116:F120) -> 1 | G121: =SUM(G116:G120) -> 0 | H121: =SUM(H116:H120) -> 44 | M121: 9 | N121: 2 | O121: 2 | Q121: 0 | R121: 0 | S121: 0 | T121: 0 | V121: 0 | W121: 6 | X121: 6
A124: K A R | B124: H E L Y | D124: Ellenőrzőtt készülék | I124: Összes javított készülék | W124: Tűzcsap
D125: Por | E125: Hab | F125: CO | G125: NKK | H125: össz db | I125: 1kgR | J125: 1kgT | K125: 2kgR | L125: 2kgT | M125: 6kgR | N125: 6kgT | O125: 12kgR | P125: 12kgT | Q125: 6 l hab | R125: 9 l hab | S125: 2kg Co2 | T125: 5kg Co2 | V125: 4l NKK | W125: összes | X125: javított
A126: GYTK | B126: GYTK | D126: 39 | E126: 11 | F126: 16 | G126: 0 | H126: 66 | M126: 4 | O126: 1 | Q126: 10 | R126: 0 | S126: 0 | T126: 0 | V126: 0 | W126: 0 | X126: 0
B127: Semmelweis kollégium | D127: 9 | E127: 0 | F127: 0 | G127: 0 | H127: 9 | M127: 4 | N127: 1 | Q127: 0 | R127: 0 | S127: 0 | T127: 0 | V127: 0 | W127: 1? | X127: 0
D128: 48 | E128: 11 | F128: 16 | G128: 0 | H128: 75 | M128: 8 | N128: 1 | O128: 1 | Q128: 10 | R128: 0 | S128: 0 | T128: 0 | V128: 0 | W128: 1? | X128: 0
A130: K A R | B130: H E L Y | D130: Ellenőrzőtt készülék | I130: Összes javított készülék | W130: Tűzcsap
D131: Por | E131: Hab | F131: CO | G131: NKK | H131: össz db | I131: 1kgR | J131: 1kgT | K131: 2kgR | L131: 2kgT | M131: 6kgR | N131: 6kgT | O131: 12kgR | P131: 12kgT | Q131: 6 l hab | R131: 9 l hab | S131: 2kg Co2 | T131: 5kg Co2 | V131: 4l NKK | W131: összes | X131: javított
A132: Hermann Ottó Koll | B132: Hermann "A" | D132: 15 | E132: 0 | F132: 1 | G132: 0 | H132: 16 | M132: 9 | O132: 2 | Q132: 0 | R132: 0 | S132: 0 | T132: 0 | V132: 0 | W132: 20 | X132: 0
B133: Hermann "B" | D133: 8 | E133: 0 | F133: 0 | G133: 0 | H133: 8 | M133: 3 | Q133: 0 | R133: 0 | S133: 0 | T133: 0 | V133: 0 | W133: 0 | X133: 0
D134: 23 | E134: 0 | F134: 1 | G134: 0 | H134: 24 | M134: 12 | O134: 2 | Q134: 0 | R134: 0 | S134: 0 | T134: 0 | V134: 0 | W134: 20 | X134: 0
A137: K A R | B137: H E L Y | D137: Ellenőrzőtt készülék | I137: Összes javított készülék | W137: Tűzcsap
D138: Por | E138: Hab | F138: CO | G138: NKK | H138: össz db | I138: 1kgR | J138: 1kgT | K138: 2kgR | L138: 2kgT | M138: 6kgR | N138: 6kgT | O138: 12kgR | P138: 12kgT | Q138: 6 l hab | R138: 9 l hab | S138: 2kg Co2 | T138: 5kg Co2 | V138: 4l NKK | W138: összes | X138: javított
A139: JATIK | D139: 14 | E139: 114 | F139: 4 | G139: 0 | H139: 132 | N139: 9 | Q139: 114 | W139: 36 | X139: 36
D140: 14 | E140: 114 | F140: 4 | G140: 0 | H140: 132 | N140: 9 | Q140: 114 | W140: 36 | X140: 36
A142: K A R | B142: H E L Y | D142: Ellenőrzőtt készülék | I142: Összes javított készülék | W142: Tűzcsap
D143: Por | E143: Hab | F143: CO | G143: NKK | H143: össz db | I143: 1kgR | J143: 1kgT | K143: 2kgR | L143: 2kgT | M143: 6kgR | N143: 6kgT | O143: 12kgR | P143: 12kgT | Q143: 6 l hab | R143: 9 l hab | S143: 2kg Co2 | T143: 5kg Co2 | V143: 4l NKK | W143: összes | X143: javított
A144: JGYPK | B144: Teleki Blanka Kollégium | D144: 19 | E144: 4 | F144: 0 | G144: 0 | H144: 23 | Q144: 12 | R144: 0 | S144: 0 | T144: 0 | V144: 0 | W144: 28 | X144: 0
B145: Rajz Tanszék | D145: 5 | E145: 0 | F145: 0 | G145: 0 | H145: 5 | Q145: 0 | R145: 0 | S145: 0 | T145: 0 | V145: 0 | W145: 0 | X145: 0
B146: Szilléri sgt. | D146: 11 | E146: 1 | F146: 1 | G146: 0 | H146: 13 | M146: 2 | Q146: 1 | R146: 0 | S146: 0 | T146: 0 | V146: 0 | W146: 0 | X146: 0
B147: JGYPK GH | D147: 36 | E147: 15 | F147: 2 | G147: 0 | H147: 53 | M147: 6 | N147: 1 | Q147: 13 | R147: 0 | S147: 1 | T147: 0 | V147: 0 | W147: 16 | X147: 0
B148: JGYPK Hattyas sor | D148: 51 | E148: 1 | F148: 2 | G148: 0 | H148: 54 | M148: 5 | N148: 1 | Q148: 0 | R148: 0 | S148: 0 | T148: 0 | V148: 0 | W148: 21 | X148: 2
B149: JGYPK Topolya | D149: 8 | E149: 0 | F149: 0 | G149: 0 | H149: 8 | N149: 1 | Q149: 0 | R149: 0 | S149: 0 | T149: 0 | V149: 0 | W149: 4 | X149: 0
B150: JGYPK Általános Iskola | D150: 16 | E150: 9 | F150: 2 | G150: 0 | H150: 27 | M150: 10 | Q150: 8 | R150: 0 | S150: 0 | T150: 0 | V150: 0 | W150: 14 | X150: 0
D151: =SUM(D144:D150) -> 146 | E151: =SUM(E144:E150) -> 30 | F151: =SUM(F144:F150) -> 7 | G151: =SUM(G144:G150) -> 0 | H151: =SUM(H144:H150) -> 183 | M151: 23 | N151: 3 | Q151: 34 | R151: 0 | S151: 1 | T151: 0 | V151: 0 | W151: =SUM(W144:W150) -> 83 | X151: 2
A155: K A R | B155: H E L Y | D155: Ellenőrzőtt készülék | I155: Összes javított készülék | W155: Tűzcsap
D156: Por | E156: Hab | F156: CO | G156: NKK | H156: össz db | I156: 1kgR | J156: 1kgT | K156: 2kgR | L156: 2kgT | M156: 6kgR | N156: 6kgT | O156: 12kgR | P156: 12kgT | Q156: 6 l hab | R156: 9 l hab | S156: 2kg Co2 | T156: 5kg Co2 | V156: 4l NKK | W156: összes | X156: javított
A157: Károlyi Mihály Koll | D157: 41 | E157: 1 | F157: 3 | G157: 0 | H157: 45 | M157: 1 | N157: 1 | O157: 6 | Q157: 1 | R157: 0 | S157: 0 | T157: 0 | V157: 0 | W157: 44 | X157: 0
D158: 41 | E158: 1 | F158: 3 | G158: 0 | H158: 45 | M158: 1 | N158: 1 | O158: 6 | Q158: 1 | R158: 0 | S158: 0 | T158: 0 | V158: 0 | W158: 44 | X158: 0
A161: K A R | B161: H E L Y | D161: Ellenőrzőtt készülék | I161: Összes javított készülék | W161: Tűzcsap
D162: Por | E162: Hab | F162: CO | G162: NKK | H162: össz db | I162: 1kgR | J162: 1kgT | K162: 2kgR | L162: 2kgT | M162: 6kgR | N162: 6kgT | O162: 12kgR | P162: 12kgT | Q162: 6 l hab | R162: 9 l hab | S162: 2kg Co2 | T162: 5kg Co2 | V162: 4l NKK | W162: összes | X162: javított
A163: Mérnöki Kar | B163: Mars tér 7. | D163: 18 | E163: 10 | F163: 3 | G163: 0 | H163: 31 | M163: 1 | O163: 1 | Q163: 11 | R163: 0 | S163: 0 | T163: 0 | V163: 0 | W163: 15 | X163: 0
B164: Mars tér 20. | D164: 0 | E164: 0 | F164: 0 | G164: 0 | H164: 0 | M164: 0 | Q164: 50 | R164: 0 | S164: 0 | T164: 0 | V164: 0 | W164: 0 | X164: 0
B165: Moszkvai krt. 5-7 | D165: 18 | E165: 10 | F165: 6 | G165: 0 | H165: =SUM(D165:G165) -> 34 | N165: 1 | O165: 2 | Q165: 9 | R165: 0 | S165: 0 | T165: 0 | V165: 0 | W165: 12 | X165: 0
B166: Moszkvai krt. 9. | D166: 15 | E166: 0 | F166: 0 | G166: 0 | H166: 15 | Q166: 0 | R166: 0 | S166: 0 | T166: 0 | V166: 0 | W166: 8 | X166: 0
B167: Mérnöki kar Kollégium | D167: 13 | E167: 0 | F167: 1 | G167: 0 | H167: 14 | N167: 1 | O167: 1 | Q167: 0 | R167: 0 | S167: 0 | T167: 0 | V167: 0 | W167: 6 | X167: 0
D168: =SUM(D163:D167) -> 64 | E168: 20 | F168: 10 | G168: 0 | H168: =SUM(H163:H167) -> 94 | M168: 1 | N168: 2 | O168: 4 | Q168: 20 | R168: 0 | S168: 0 | T168: 0 | V168: 0 | W168: =SUM(W163:W167) -> 41 | X168: 0
A171: K A R | B171: H E L Y | D171: Ellenőrzőtt készülék | I171: Összes javított készülék | W171: Tűzcsap
D172: Por | E172: Hab | F172: CO | G172: NKK | H172: össz db | I172: 1kgR | J172: 1kgT | K172: 2kgR | L172: 2kgT | M172: 6kgR | N172: 6kgT | O172: 12kgR | P172: 12kgT | Q172: 6 l hab | R172: 9 l hab | S172: 2kg Co2 | T172: 5kg Co2 | V172: 4l NKK | W172: összes | X172: javított
A173: Hódmezővásárhely | D173: 62 | E173: 9 | F173: 14 | G173: 0 | H173: 85 | M173: 13 | N173: 7 | O173: 3 | Q173: 11 | W173: 20
D174: 62 | E174: 9 | F174: 14 | G174: 0 | H174: 85 | M174: 13 | N174: 7 | O174: 3 | Q174: 11 | W174: 20
A177: K A R | B177: H E L Y | D177: Ellenőrzőtt készülék | I177: Összes javított készülék | W177: Tűzcsap
D178: Por | E178: Hab | F178: CO | G178: NKK | H178: össz db | I178: 1kgR | J178: 1kgT | K178: 2kgR | L178: 2kgT | M178: 6kgR | N178: 6kgT | O178: 12kgR | P178: 12kgT | Q178: 6 l hab | R178: 9 l hab | S178: 2kg Co2 | T178: 5kg Co2 | V178: 4l NKK | W178: összes | X178: javított
A179: Móra Kollégium | D179: 18 | E179: 2 | F179: 1 | G179: 0 | H179: 21 | M179: 4 | Q179: 2 | R179: 0 | S179: 0 | T179: 0 | V179: 0 | W179: 8 | X179: 0
D180: 18 | E180: 2 | F180: 1 | G180: 0 | H180: 21 | M180: 4 | Q180: 2 | R180: 0 | S180: 0 | T180: 0 | V180: 0 | W180: 8 | X180: 0
A183: K A R | B183: H E L Y | D183: Ellenőrzőtt készülék | I183: Összes javított készülék | W183: Tűzcsap
D184: Por | E184: Hab | F184: CO | G184: NKK | H184: össz db | I184: 1kgR | J184: 1kgT | K184: 2kgR | L184: 2kgT | M184: 6kgR | N184: 6kgT | O184: 12kgR | P184: 12kgT | Q184: 6 l hab | R184: 9 l hab | S184: 2kg Co2 | T184: 5kg Co2 | V184: 4l NKK | W184: összes | X184: javított
A185: Ságvári Általános Isk | D185: 23 | E185: 4 | F185: 0 | G185: 0 | H185: 27 | M185: 1 | O185: 2 | Q185: 4 | R185: 0 | S185: 0 | T185: 0 | V185: 0 | W185: 14 | X185: 14
D186: 23 | E186: 4 | F186: 0 | G186: 0 | H186: 27 | M186: 1 | O186: 2 | Q186: 4 | R186: 0 | S186: 0 | T186: 0 | V186: 0 | W186: 14 | X186: 14
A189: K A R | B189: H E L Y | D189: Ellenőrzőtt készülék | I189: Összes javított készülék | W189: Tűzcsap
D190: Por | E190: Hab | F190: CO | G190: NKK | H190: össz db | I190: 1kgR | J190: 1kgT | K190: 2kgR | L190: 2kgT | M190: 6kgR | N190: 6kgT | O190: 12kgR | P190: 12kgT | Q190: 6 l hab | R190: 9 l hab | S190: 2kg Co2 | T190: 5kg Co2 | V190: 4l NKK | W190: összes | X190: javított
A191: Ságvári Gimnázium | D191: 20 | E191: 4 | F191: 5 | G191: 0 | H191: 29 | M191: 3 | Q191: 3 | R191: 0 | S191: 0 | T191: 0 | V191: 0 | W191: 12 | X191: 1
D192: 20 | E192: 4 | F192: 5 | G192: 0 | H192: 29 | M192: 3 | Q192: 3 | R192: 0 | S192: 0 | T192: 0 | V192: 0 | W192: 12 | X192: 1
A195: K A R | B195: H E L Y | D195: Ellenőrzőtt készülék | I195: Összes javított készülék | W195: Tűzcsap
D196: Por | E196: Hab | F196: CO | G196: NKK | H196: össz db | I196: 1kgR | J196: 1kgT | K196: 2kgR | L196: 2kgT | M196: 6kgR | N196: 6kgT | O196: 12kgR | P196: 12kgT | Q196: 6 l hab | R196: 9 l hab | S196: 2kg Co2 | T196: 5kg Co2 | V196: 4l NKK | W196: összes | X196: javított
A197: Tudásközpont | B197: Rektori épület | D197: 25 | E197: 0 | F197: 0 | G197: 3 | H197: 28 | O197: 1 | Q197: 1 | R197: 0 | S197: 0 | T197: 0 | V197: 0 | W197: 14 | X197: 0
D198: 25 | E198: 0 | F198: 0 | G198: 3 | H198: 28 | O198: 1 | Q198: 1 | R198: 0 | S198: 0 | T198: 0 | V198: 0 | W198: 14 | X198: 0
A201: K A R | B201: H E L Y | D201: Ellenőrzőtt készülék | I201: Összes javított készülék | W201: Tűzcsap
D202: Por | E202: Hab | F202: CO | G202: NKK | H202: össz db | I202: 1kgR | J202: 1kgT | K202: 2kgR | L202: 2kgT | M202: 6kgR | N202: 6kgT | O202: 12kgR | P202: 12kgT | Q202: 6 l hab | R202: 9 l hab | S202: 2kg Co2 | T202: 5kg Co2 | V202: 4l NKK | W202: összes | X202: javított
A203: TTIK | B203: Béke épület | D203: 23 | E203: 20 | F203: 6 | G203: 0 | H203: 49 | M203: 1 | Q203: 18 | R203: 0 | S203: 0 | T203: 0 | V203: 0 | W203: 14 | X203: 0
B204: Bólyai épület | D204: 0 | E204: 0 | F204: 0 | G204: 0 | H204: 0 | Q204: 0 | R204: 0 | S204: 0 | T204: 0 | V204: 0 | W204: 0 | X204: 0
B205: Dóm tér 7-8 | D205: 34 | E205: 22 | F205: 5 | G205: 0 | H205: 61 | M205: 1 | Q205: 5 | R205: 0 | S205: 0 | T205: 0 | V205: 0 | W205: 8 | X205: 0
B206: Dóm tér 9. | D206: 8 | E206: 3 | F206: 5 | G206: 0 | H206: 16 | L206: 1 | Q206: 0 | R206: 0 | S206: 0 | T206: 0 | V206: 0 | W206: 8 | X206: 0
B207: I. Kórház épülete | D207: 23 | E207: 7 | F207: 3 | G207: 0 | H207: 33 | M207: 1 | N207: 1 | P207: 1 | Q207: 0 | R207: 0 | S207: 0 | T207: 0 | V207: 0 | W207: 0 | X207: 0
B208: Mars tér 20. | D208: 17 | E208: 5 | F208: 0 | G208: 0 | H208: 22 | M208: 1 | Q208: 5 | R208: 0 | S208: 0 | T208: 0 | V208: 0 | W208: 0 | X208: 0
B209: Füvészkert | D209: 19 | E209: 1 | F209: 0 | G209: 0 | H209: 20 | M209: 6 | O209: 1 | P209: 1 | Q209: 1 | R209: 0 | S209: 0 | T209: 0 | V209: 0 | W209: 0 | X209: 0
B210: Irinyi épület | D210: 21 | E210: 3 | F210: 7 | G210: 0 | H210: 31 | N210: 1 | Q210: 0 | R210: 0 | S210: 0 | T210: 0 | V210: 0 | W210: 18 | X210: 0
B211: Biológia épület | D211: 43 | E211: 6 | F211: 55 | G211: 0 | H211: =SUM(D211:G211) -> 104 | M211: 4 | N211: 2 | O211: 1 | Q211: 3 | R211: 0 | S211: 0 | T211: 0 | V211: 0 | W211: 22 | X211: 1
B212: Számítógép központ | D212: 9 | E212: 16 | F212: 2 | G212: 2 | H212: 29 | M212: 2 | N212: 1 | O212: 2 | Q212: 15 | R212: 0 | S212: 0 | T212: 0 | V212: 0 | W212: 1 | X212: 0
B213: Csiszár épület | D213: 2 | E213: 3 | F213: 0 | G213: 0 | H213: 5 | Q213: 0 | R213: 0 | S213: 0 | T213: 0 | V213: 0 | W213: 0 | X213: 0
D214: =SUM(D203:D213) -> 199 | E214: =SUM(E203:E213) -> 86 | F214: =SUM(F203:F213) -> 83 | G214: =SUM(G203:G213) -> 2 | H214: =SUM(H203:H213) -> 370 | L214: 1 | M214: 16 | N214: 5 | O214: 4 | P214: 2 | Q214: 47 | R214: 0 | S214: 0 | T214: 0 | V214: 0 | W214: =SUM(W203:W213) -> 71 | X214: 1
A217: K A R | B217: H E L Y | D217: Ellenőrzőtt készülék | I217: Összes javított készülék | W217: Tűzcsap
D218: Por | E218: Hab | F218: CO | G218: NKK | H218: össz db | I218: 1kgR | J218: 1kgT | K218: 2kgR | L218: 2kgT | M218: 6kgR | N218: 6kgT | O218: 12kgR | P218: 12kgT | Q218: 6 l hab | R218: 9 l hab | S218: 2kg Co2 | T218: 5kg Co2 | V218: 4l NKK | W218: összes | X218: javított
A219: Universitas | D219: 9 | E219: 0 | F219: 0 | G219: 0 | H219: 9 | M219: 1 | W219: 2 | X219: 0
D220: 9 | E220: 0 | F220: 0 | G220: 0 | H220: 9 | M220: 1 | W220: 2 | X220: 0
A223: K A R | B223: H E L Y | D223: Ellenőrzőtt készülék | I223: Összes javított készülék | W223: Tűzcsap
D224: Por | E224: Hab | F224: CO | G224: NKK | H224: össz db | I224: 1kgR | J224: 1kgT | K224: 2kgR | L224: 2kgT | M224: 6kgR | N224: 6kgT | O224: 12kgR | P224: 12kgT | Q224: 6 l hab | R224: 9 l hab | S224: 2kg Co2 | T224: 5kg Co2 | V224: 4l NKK | W224: összes | X224: javított
A225: Öthalmi diáklakások | D225: 34 | E225: 1 | F225: 1 | G225: 0 | H225: 36 | M225: 14 | O225: 1 | W225: 0 | X225: 0
D226: 34 | E226: 1 | F226: 1 | G226: 0 | H226: 36 | M226: 14 | O226: 1 | W226: 0 | X226: 0
A229: K A R | B229: H E L Y | D229: Ellenőrzőtt készülék | I229: Összes javított készülék | W229: Tűzcsap
D230: Por | E230: Hab | F230: CO | G230: NKK | H230: össz db | I230: 1kgR | J230: 1kgT | K230: 2kgR | L230: 2kgT | M230: 6kgR | N230: 6kgT | O230: 12kgR | P230: 12kgT | Q230: 6 l hab | R230: 9 l hab | S230: 2kg Co2 | T230: 5kg Co2 | V230: 4l NKK | W230: összes | X230: javított
A231: ZMK | D231: 20 | E231: 0 | F231: 0 | G231: 0 | H231: 20 | M231: 5 | Q231: 0 | R231: 0 | S231: 0 | T231: 0 | V231: 0 | W231: 0 | X231: 0
D232: 20 | E232: 0 | F232: 0 | G232: 0 | H232: 20 | M232: 5 | Q232: 0 | R232: 0 | S232: 0 | T232: 0 | V232: 0 | W232: 0 | X232: 0
A237: K A R | B237: H E L Y | D237: Ellenőrzőtt készülék | I237: TOTÁL ÖSSZES | W237: Tűzcsap
I238: 2014-es évben javított készülékek darabszáma
D239: Por | E239: Hab | F239: CO | G239: NKK | H239: össz db | I239: 1kgR | J239: 1kgT | K239: 2kgR | L239: 2kgT | M239: 6kgR | N239: 6kgT | O239: 12kgR | P239: 12kgT | Q239: 6 l hab | R239: 9 l hab | S239: 2kg Co2 | T239: 5kg Co2 | V239: 4l NKK | W239: összes | X239: javított
A240: ÁJTK | B240: Tisza L. krt 54. | D240: 23 | E240: 7 | F240: 3 | G240: 0 | H240: 33 | P240: 2 | Q240: 0 | R240: 0 | S240: 0 | T240: 0 | V240: 0 | W240: 7 | X240: 0
A241: ÁOK | B241: Tisza L. krt. 107. | D241: 826 | E241: 115 | F241: 108 | G241: 0 | H241: 1049 | K241: =SUM(K181:K240) -> 0 | M241: =SUM(M182:M240) -> 80 | N241: =SUM(N181:N240) -> 10 | O241: =SUM(O182:O240) -> 16 | P241: 2 | Q241: =SUM(Q180:Q240) -> 112 | R241: 4 | S241: 3 | T241: 1 | V241: 0 | W241: 287 | X241: 65
A242: BTK | B242: Egyetem u. 2-4. | D242: 80 | E242: 13 | F242: 31 | G242: 0 | H242: 124 | M242: 19 | W242: 5 | X242: 0
A243: DNT | B243: Tisza L. krt 113. | D243: 9 | E243: 1 | F243: 9 | G243: 0 | H243: 19 | M243: 1 | Q243: 1 | T243: 8 | W243: 5
A244: ETSZK | B244: Temesvári krt 31. | D244: 48 | E244: 4 | F244: 6 | G244: 0 | H244: 58 | M244: 19 | O244: 6 | S244: 2 | W244: 23
A245: FOGKLINIKA | B245: Tisza L. krt 64. | D245: 25 | E245: 0 | F245: 2 | G245: 0 | H245: 27 | M245: 13 | S245: 1
A246: GMF | B246: Rákóczi tér 1. | D246: 75 | E246: 18 | F246: 3 | G246: 0 | H246: 96 | I246: 2 | K246: 6 | L246: 3 | M246: 14 | N246: 8 | O246: 1 | Q246: 7 | R246: 0 | T246: 1 | W246: 28 | X246: 1
A247: GTK | B247: Kálvária sgt. 1. | D247: 41 | E247: 2 | F247: 1 | G247: 0 | H247: 44 | M247: 9 | N247: 2 | O247: 2 | W247: 6 | X247: 6
... 18 more rows

Sheet Munka3
